{"text_format":"3","workbook":"xlsx","n_sheets":13,"sheets":["Januari","Februari","Mars","April","Maj","Juni","Juli","Augusti","September","Oktober","November","December","Sammanfattning hittills i år"],"not_rendered":{"charts":1,"defined_names":13},"read":"whole","date_system":"1900"}

{"sheet":"Januari","index":0,"n_rows":9,"n_cols":14,"rows_kept":9,"merged":[[3,0,4,0],[6,0,7,0]]}
["JANUARI"]
["Onlineförsäljning",null,"Auktions-ID","Artikelbeskrivning","Inköpspris","Försäljningspris","Onlineavgifter","PayPal-avgifter","Kreditkortsavgifter","Fraktkostnader","Fraktkostnader2","Resultat försäljning","Resultat frakt","Summa resultat"]
["År",null,"TS001","Artikel 1",{"v":5,"d":"5.00 kr"},{"v":4,"d":"4.00 kr"},{"v":2,"d":"2.00 kr"},{"v":1.5,"d":"1.50 kr"},{"v":0,"d":"0.00 kr"},{"v":4,"d":"4.00 kr"},{"v":2,"d":"2.00 kr"},{"$f":"IFERROR(Försäljning_januari[Försäljningspris]-(Försäljning_januari[Inköpspris]+Försäljning_januari[Onlineavgifter]+Försäljning_januari[PayPal-avgifter]+Försäljning_januari[Kreditkortsavgifter]),\"\")","v":{"v":-4.5,"d":"(4.50 kr)"}},{"$f":"Försäljning_januari[Fraktkostnader]-Försäljning_januari[Fraktkostnader2]","v":{"v":2,"d":"2.00 kr"}},{"$f":"Försäljning_januari[Resultat försäljning]+Försäljning_januari[Resultat frakt]","v":{"v":-2.5,"d":"(2.50 kr)"}}]
[2012,null,"TP004","Artikel 2",{"v":2,"d":"2.00 kr"},{"v":30,"d":"30.00 kr"},{"v":0.5,"d":"0.50 kr"},{"v":0.5,"d":"0.50 kr"},null,{"v":4,"d":"4.00 kr"},{"v":5.5,"d":"5.50 kr"},{"$f":"IFERROR(Försäljning_januari[Försäljningspris]-(Försäljning_januari[Inköpspris]+Försäljning_januari[Onlineavgifter]+Försäljning_januari[PayPal-avgifter]+Försäljning_januari[Kreditkortsavgifter]),\"\")","v":{"v":27,"d":"27.00 kr"}},{"$f":"Försäljning_januari[Fraktkostnader]-Försäljning_januari[Fraktkostnader2]","v":{"v":-1.5,"d":"(1.50 kr)"}},{"$f":"Försäljning_januari[Resultat försäljning]+Försäljning_januari[Resultat frakt]","v":{"v":25.5,"d":"25.50 kr"}}]
[null,null,"RS99","Artikel 3",{"v":17,"d":"17.00 kr"},{"v":23,"d":"23.00 kr"},{"v":2,"d":"2.00 kr"},null,{"v":2,"d":"2.00 kr"},{"v":3,"d":"3.00 kr"},{"v":2,"d":"2.00 kr"},{"$f":"IFERROR(Försäljning_januari[Försäljningspris]-(Försäljning_januari[Inköpspris]+Försäljning_januari[Onlineavgifter]+Försäljning_januari[PayPal-avgifter]+Försäljning_januari[Kreditkortsavgifter]),\"\")","v":{"v":2,"d":"2.00 kr"}},{"$f":"Försäljning_januari[Fraktkostnader]-Försäljning_januari[Fraktkostnader2]","v":{"v":1,"d":"1.00 kr"}},{"$f":"Försäljning_januari[Resultat försäljning]+Försäljning_januari[Resultat frakt]","v":{"v":3,"d":"3.00 kr"}}]
["Summa resultat",null,"ST001","Artikel 4",{"v":120,"d":"120.00 kr"},{"v":180,"d":"180.00 kr"},{"v":2,"d":"2.00 kr"},{"v":1.5,"d":"1.50 kr"},null,{"v":3,"d":"3.00 kr"},{"v":2,"d":"2.00 kr"},{"$f":"IFERROR(Försäljning_januari[Försäljningspris]-(Försäljning_januari[Inköpspris]+Försäljning_januari[Onlineavgifter]+Försäljning_januari[PayPal-avgifter]+Försäljning_januari[Kreditkortsavgifter]),\"\")","v":{"v":56.5,"d":"56.50 kr"}},{"$f":"Försäljning_januari[Fraktkostnader]-Försäljning_januari[Fraktkostnader2]","v":{"v":1,"d":"1.00 kr"}},{"$f":"Försäljning_januari[Resultat försäljning]+Försäljning_januari[Resultat frakt]","v":{"v":57.5,"d":"57.50 kr"}}]
[{"$f":"Försäljning_januari[[#Totals],[Summa resultat]]","v":{"v":89,"d":"89.00 kr"}},null,"ST001","Artikel 5",{"v":10,"d":"10.00 kr"},{"v":12,"d":"12.00 kr"},{"v":2,"d":"2.00 kr"},{"v":1.5,"d":"1.50 kr"},null,{"v":14,"d":"14.00 kr"},{"v":7,"d":"7.00 kr"},{"$f":"IFERROR(Försäljning_januari[Försäljningspris]-(Försäljning_januari[Inköpspris]+Försäljning_januari[Onlineavgifter]+Försäljning_januari[PayPal-avgifter]+Försäljning_januari[Kreditkortsavgifter]),\"\")","v":{"v":-1.5,"d":"(1.50 kr)"}},{"$f":"Försäljning_januari[Fraktkostnader]-Försäljning_januari[Fraktkostnader2]","v":{"v":7,"d":"7.00 kr"}},{"$f":"Försäljning_januari[Resultat försäljning]+Försäljning_januari[Resultat frakt]","v":{"v":5.5,"d":"5.50 kr"}}]
[null,null,"Summa",{"$f":"\"Sålda artiklar: \"&SUBTOTAL(103,Försäljning_januari[Artikelbeskrivning])","v":"Sålda artiklar: 5"},{"$f":"SUBTOTAL(109,Försäljning_januari[Inköpspris])","v":{"v":154,"d":"154.00 kr"}},{"$f":"SUBTOTAL(109,Försäljning_januari[Försäljningspris])","v":{"v":249,"d":"249.00 kr"}},{"$f":"SUBTOTAL(109,Försäljning_januari[Onlineavgifter])","v":{"v":8.5,"d":"8.50 kr"}},{"$f":"SUBTOTAL(109,Försäljning_januari[PayPal-avgifter])","v":{"v":5,"d":"5.00 kr"}},{"$f":"SUBTOTAL(109,Försäljning_januari[Kreditkortsavgifter])","v":{"v":2,"d":"2.00 kr"}},{"$f":"SUBTOTAL(109,Försäljning_januari[Fraktkostnader])","v":{"v":28,"d":"28.00 kr"}},{"$f":"SUBTOTAL(109,Försäljning_januari[Fraktkostnader2])","v":{"v":18.5,"d":"18.50 kr"}},{"$f":"SUBTOTAL(109,Försäljning_januari[Resultat försäljning])","v":{"v":79.5,"d":"79.50 kr"}},{"$f":"SUBTOTAL(109,Försäljning_januari[Resultat frakt])","v":{"v":9.5,"d":"9.50 kr"}},{"$f":"SUBTOTAL(109,Försäljning_januari[Summa resultat])","v":{"v":89,"d":"89.00 kr"}}]
["Resultattrend"]

{"sheet":"Februari","index":1,"n_rows":9,"n_cols":14,"rows_kept":9,"merged":[[3,0,4,0],[6,0,7,0]]}
["FEBRUARI"]
["Onlineförsäljning",null,"Auktions-ID","Artikelbeskrivning","Inköpspris","Försäljningspris","Onlineavgifter","PayPal-avgifter","Kreditkortsavgifter","Fraktkostnader","Fraktkostnader2","Resultat försäljning","Resultat frakt","Summa resultat"]
["År",null,"TS020","Artikel 1",{"v":10,"d":"10.00 kr"},{"v":175,"d":"175.00 kr"},{"v":3,"d":"3.00 kr"},{"v":1.5,"d":"1.50 kr"},{"v":0,"d":"0.00 kr"},{"v":7,"d":"7.00 kr"},{"v":5,"d":"5.00 kr"},{"$f":"IFERROR(Försäljning_februari[Försäljningspris]-(Försäljning_februari[Inköpspris]+Försäljning_februari[Onlineavgifter]+Försäljning_februari[PayPal-avgifter]+Försäljning_februari[Kreditkortsavgifter]),\"\")","v":{"v":160.5,"d":"160.50 kr"}},{"$f":"Försäljning_februari[Fraktkostnader]-Försäljning_februari[Fraktkostnader2]","v":{"v":2,"d":"2.00 kr"}},{"$f":"Försäljning_februari[Resultat försäljning]+Försäljning_februari[Resultat frakt]","v":{"v":162.5,"d":"162.50 kr"}}]
[{"$f":"Försäljning_år","v":2012},null,"TS021","Artikel 2",{"v":32,"d":"32.00 kr"},{"v":100,"d":"100.00 kr"},{"v":3,"d":"3.00 kr"},null,{"v":3.2,"d":"3.20 kr"},{"v":20,"d":"20.00 kr"},{"v":13,"d":"13.00 kr"},{"$f":"IFERROR(Försäljning_februari[Försäljningspris]-(Försäljning_februari[Inköpspris]+Försäljning_februari[Onlineavgifter]+Försäljning_februari[PayPal-avgifter]+Försäljning_februari[Kreditkortsavgifter]),\"\")","v":{"v":61.8,"d":"61.80 kr"}},{"$f":"Försäljning_februari[Fraktkostnader]-Försäljning_februari[Fraktkostnader2]","v":{"v":7,"d":"7.00 kr"}},{"$f":"Försäljning_februari[Resultat försäljning]+Försäljning_februari[Resultat frakt]","v":{"v":68.8,"d":"68.80 kr"}}]
[null,null,"TS022","Artikel 3",{"v":3,"d":"3.00 kr"},{"v":7,"d":"7.00 kr"},{"v":2,"d":"2.00 kr"},null,{"v":2,"d":"2.00 kr"},{"v":0.5,"d":"0.50 kr"},{"v":1.2,"d":"1.20 kr"},{"$f":"IFERROR(Försäljning_februari[Försäljningspris]-(Försäljning_februari[Inköpspris]+Försäljning_februari[Onlineavgifter]+Försäljning_februari[PayPal-avgifter]+Försäljning_februari[Kreditkortsavgifter]),\"\")","v":{"v":0,"d":"0.00 kr"}},{"$f":"Försäljning_februari[Fraktkostnader]-Försäljning_februari[Fraktkostnader2]","v":{"v":-0.7,"d":"(0.70 kr)"}},{"$f":"Försäljning_februari[Resultat försäljning]+Försäljning_februari[Resultat frakt]","v":{"v":-0.7,"d":"(0.70 kr)"}}]
["Summa resultat",null,"TS023","Artikel 4",{"v":22,"d":"22.00 kr"},{"v":18,"d":"18.00 kr"},{"v":3,"d":"3.00 kr"},{"v":1.5,"d":"1.50 kr"},null,{"v":7,"d":"7.00 kr"},{"v":10,"d":"10.00 kr"},{"$f":"IFERROR(Försäljning_februari[Försäljningspris]-(Försäljning_februari[Inköpspris]+Försäljning_februari[Onlineavgifter]+Försäljning_februari[PayPal-avgifter]+Försäljning_februari[Kreditkortsavgifter]),\"\")","v":{"v":-8.5,"d":"(8.50 kr)"}},{"$f":"Försäljning_februari[Fraktkostnader]-Försäljning_februari[Fraktkostnader2]","v":{"v":-3,"d":"(3.00 kr)"}},{"$f":"Försäljning_februari[Resultat försäljning]+Försäljning_februari[Resultat frakt]","v":{"v":-11.5,"d":"(11.50 kr)"}}]
[{"$f":"Försäljning_februari[[#Totals],[Summa resultat]]","v":{"v":224.60000000000002,"d":"224.60 kr"}},null,"TS024","Artikel 5",{"v":10,"d":"10.00 kr"},{"v":12,"d":"12.00 kr"},{"v":2,"d":"2.00 kr"},{"v":1.5,"d":"1.50 kr"},null,{"v":14,"d":"14.00 kr"},{"v":7,"d":"7.00 kr"},{"$f":"IFERROR(Försäljning_februari[Försäljningspris]-(Försäljning_februari[Inköpspris]+Försäljning_februari[Onlineavgifter]+Försäljning_februari[PayPal-avgifter]+Försäljning_februari[Kreditkortsavgifter]),\"\")","v":{"v":-1.5,"d":"(1.50 kr)"}},{"$f":"Försäljning_februari[Fraktkostnader]-Försäljning_februari[Fraktkostnader2]","v":{"v":7,"d":"7.00 kr"}},{"$f":"Försäljning_februari[Resultat försäljning]+Försäljning_februari[Resultat frakt]","v":{"v":5.5,"d":"5.50 kr"}}]
[null,null,"Summa",{"$f":"\"Sålda artiklar: \"&SUBTOTAL(103,Försäljning_februari[Artikelbeskrivning])","v":"Sålda artiklar: 5"},{"$f":"SUBTOTAL(109,Försäljning_februari[Inköpspris])","v":{"v":77,"d":"77.00 kr"}},{"$f":"SUBTOTAL(109,Försäljning_februari[Försäljningspris])","v":{"v":312,"d":"312.00 kr"}},{"$f":"SUBTOTAL(109,Försäljning_februari[Onlineavgifter])","v":{"v":13,"d":"13.00 kr"}},{"$f":"SUBTOTAL(109,Försäljning_februari[PayPal-avgifter])","v":{"v":4.5,"d":"4.50 kr"}},{"$f":"SUBTOTAL(109,Försäljning_februari[Kreditkortsavgifter])","v":{"v":5.2,"d":"5.20 kr"}},{"$f":"SUBTOTAL(109,Försäljning_februari[Fraktkostnader])","v":{"v":48.5,"d":"48.50 kr"}},{"$f":"SUBTOTAL(109,Försäljning_februari[Fraktkostnader2])","v":{"v":36.2,"d":"36.20 kr"}},{"$f":"SUBTOTAL(109,Försäljning_februari[Resultat försäljning])","v":{"v":212.3,"d":"212.30 kr"}},{"$f":"SUBTOTAL(109,Försäljning_februari[Resultat frakt])","v":{"v":12.3,"d":"12.30 kr"}},{"$f":"SUBTOTAL(109,Försäljning_februari[Summa resultat])","v":{"v":224.60000000000002,"d":"224.60 kr"}}]
["Resultattrend"]

{"sheet":"Mars","index":2,"n_rows":9,"n_cols":14,"rows_kept":9,"merged":[[3,0,4,0],[6,0,7,0]]}
["MARS"]
["Onlineförsäljning",null,"Auktions-ID","Artikelbeskrivning","Inköpspris","Försäljningspris","Onlineavgifter","PayPal-avgifter","Kreditkortsavgifter","Fraktkostnader","Fraktkostnader2","Resultat försäljning","Resultat frakt","Summa resultat"]
["År",{"$nulls":10},{"$f":"IFERROR(Försäljning_mars[Försäljningspris]-(Försäljning_mars[Inköpspris]+Försäljning_mars[Onlineavgifter]+Försäljning_mars[PayPal-avgifter]+Försäljning_mars[Kreditkortsavgifter]),\"\")","v":{"v":0,"d":"0.00 kr"}},{"$f":"Försäljning_mars[Fraktkostnader]-Försäljning_mars[Fraktkostnader2]","v":{"v":0,"d":"0.00 kr"}},{"$f":"Försäljning_mars[Resultat försäljning]+Försäljning_mars[Resultat frakt]","v":{"v":0,"d":"0.00 kr"}}]
[{"$f":"Försäljning_år","v":2012},{"$nulls":10},{"$f":"IFERROR(Försäljning_mars[Försäljningspris]-(Försäljning_mars[Inköpspris]+Försäljning_mars[Onlineavgifter]+Försäljning_mars[PayPal-avgifter]+Försäljning_mars[Kreditkortsavgifter]),\"\")","v":{"v":0,"d":"0.00 kr"}},{"$f":"Försäljning_mars[Fraktkostnader]-Försäljning_mars[Fraktkostnader2]","v":{"v":0,"d":"0.00 kr"}},{"$f":"Försäljning_mars[Resultat försäljning]+Försäljning_mars[Resultat frakt]","v":{"v":0,"d":"0.00 kr"}}]
[{"$nulls":11},{"$f":"IFERROR(Försäljning_mars[Försäljningspris]-(Försäljning_mars[Inköpspris]+Försäljning_mars[Onlineavgifter]+Försäljning_mars[PayPal-avgifter]+Försäljning_mars[Kreditkortsavgifter]),\"\")","v":{"v":0,"d":"0.00 kr"}},{"$f":"Försäljning_mars[Fraktkostnader]-Försäljning_mars[Fraktkostnader2]","v":{"v":0,"d":"0.00 kr"}},{"$f":"Försäljning_mars[Resultat försäljning]+Försäljning_mars[Resultat frakt]","v":{"v":0,"d":"0.00 kr"}}]
["Summa resultat",{"$nulls":10},{"$f":"IFERROR(Försäljning_mars[Försäljningspris]-(Försäljning_mars[Inköpspris]+Försäljning_mars[Onlineavgifter]+Försäljning_mars[PayPal-avgifter]+Försäljning_mars[Kreditkortsavgifter]),\"\")","v":{"v":0,"d":"0.00 kr"}},{"$f":"Försäljning_mars[Fraktkostnader]-Försäljning_mars[Fraktkostnader2]","v":{"v":0,"d":"0.00 kr"}},{"$f":"Försäljning_mars[Resultat försäljning]+Försäljning_mars[Resultat frakt]","v":{"v":0,"d":"0.00 kr"}}]
[{"$f":"Försäljning_mars[[#Totals],[Summa resultat]]","v":{"v":0,"d":"0.00 kr"}},{"$nulls":10},{"$f":"IFERROR(Försäljning_mars[Försäljningspris]-(Försäljning_mars[Inköpspris]+Försäljning_mars[Onlineavgifter]+Försäljning_mars[PayPal-avgifter]+Försäljning_mars[Kreditkortsavgifter]),\"\")","v":{"v":0,"d":"0.00 kr"}},{"$f":"Försäljning_mars[Fraktkostnader]-Försäljning_mars[Fraktkostnader2]","v":{"v":0,"d":"0.00 kr"}},{"$f":"Försäljning_mars[Resultat försäljning]+Försäljning_mars[Resultat frakt]","v":{"v":0,"d":"0.00 kr"}}]
[null,null,"Summa",{"$f":"\"Sålda artiklar: \"&SUBTOTAL(103,Försäljning_mars[Artikelbeskrivning])","v":"Sålda artiklar: 0"},{"$f":"SUBTOTAL(109,Försäljning_mars[Inköpspris])","v":{"v":0,"d":"0.00 kr"}},{"$f":"SUBTOTAL(109,Försäljning_mars[Försäljningspris])","v":{"v":0,"d":"0.00 kr"}},{"$f":"SUBTOTAL(109,Försäljning_mars[Onlineavgifter])","v":{"v":0,"d":"0.00 kr"}},{"$f":"SUBTOTAL(109,Försäljning_mars[PayPal-avgifter])","v":{"v":0,"d":"0.00 kr"}},{"$f":"SUBTOTAL(109,Försäljning_mars[Kreditkortsavgifter])","v":{"v":0,"d":"0.00 kr"}},{"$f":"SUBTOTAL(109,Försäljning_mars[Fraktkostnader])","v":{"v":0,"d":"0.00 kr"}},{"$f":"SUBTOTAL(109,Försäljning_mars[Fraktkostnader2])","v":{"v":0,"d":"0.00 kr"}},{"$f":"SUBTOTAL(109,Försäljning_mars[Resultat försäljning])","v":{"v":0,"d":"0.00 kr"}},{"$f":"SUBTOTAL(109,Försäljning_mars[Resultat frakt])","v":{"v":0,"d":"0.00 kr"}},{"$f":"SUBTOTAL(109,Försäljning_mars[Summa resultat])","v":{"v":0,"d":"0.00 kr"}}]
["Resultattrend"]

{"sheet":"April","index":3,"n_rows":9,"n_cols":14,"rows_kept":9,"merged":[[3,0,4,0],[6,0,7,0]]}
["APRIL"]
["Onlineförsäljning",null,"Auktions-ID","Artikelbeskrivning","Inköpspris","Försäljningspris","Onlineavgifter","PayPal-avgifter","Kreditkortsavgifter","Fraktkostnader","Fraktkostnader2","Resultat försäljning","Resultat frakt","Summa resultat"]
["År",{"$nulls":11},{"$f":"Försäljning_april[Fraktkostnader]-Försäljning_april[Fraktkostnader2]","v":{"v":0,"d":"0.00 kr"}},{"$f":"Försäljning_april[Resultat försäljning]+Försäljning_april[Resultat frakt]","v":{"v":0,"d":"0.00 kr"}}]
[{"$f":"Försäljning_år","v":2012},{"$nulls":11},{"$f":"Försäljning_april[Fraktkostnader]-Försäljning_april[Fraktkostnader2]","v":{"v":0,"d":"0.00 kr"}},{"$f":"Försäljning_april[Resultat försäljning]+Försäljning_april[Resultat frakt]","v":{"v":0,"d":"0.00 kr"}}]
[{"$nulls":12},{"$f":"Försäljning_april[Fraktkostnader]-Försäljning_april[Fraktkostnader2]","v":{"v":0,"d":"0.00 kr"}},{"$f":"Försäljning_april[Resultat försäljning]+Försäljning_april[Resultat frakt]","v":{"v":0,"d":"0.00 kr"}}]
["Summa resultat",{"$nulls":11},{"$f":"Försäljning_april[Fraktkostnader]-Försäljning_april[Fraktkostnader2]","v":{"v":0,"d":"0.00 kr"}},{"$f":"Försäljning_april[Resultat försäljning]+Försäljning_april[Resultat frakt]","v":{"v":0,"d":"0.00 kr"}}]
[{"$f":"Försäljning_april[[#Totals],[Summa resultat]]","v":{"v":0,"d":"0.00 kr"}},{"$nulls":11},{"$f":"Försäljning_april[Fraktkostnader]-Försäljning_april[Fraktkostnader2]","v":{"v":0,"d":"0.00 kr"}},{"$f":"Försäljning_april[Resultat försäljning]+Försäljning_april[Resultat frakt]","v":{"v":0,"d":"0.00 kr"}}]
[null,null,"Summa",{"$f":"\"Sålda artiklar: \"&SUBTOTAL(103,Försäljning_april[Artikelbeskrivning])","v":"Sålda artiklar: 0"},{"$f":"SUBTOTAL(109,Försäljning_april[Inköpspris])","v":{"v":0,"d":"0.00 kr"}},{"$f":"SUBTOTAL(109,Försäljning_april[Försäljningspris])","v":{"v":0,"d":"0.00 kr"}},{"$f":"SUBTOTAL(109,Försäljning_april[Onlineavgifter])","v":{"v":0,"d":"0.00 kr"}},{"$f":"SUBTOTAL(109,Försäljning_april[PayPal-avgifter])","v":{"v":0,"d":"0.00 kr"}},{"$f":"SUBTOTAL(109,Försäljning_april[Kreditkortsavgifter])","v":{"v":0,"d":"0.00 kr"}},{"$f":"SUBTOTAL(109,Försäljning_april[Fraktkostnader])","v":{"v":0,"d":"0.00 kr"}},{"$f":"SUBTOTAL(109,Försäljning_april[Fraktkostnader2])","v":{"v":0,"d":"0.00 kr"}},{"$f":"SUBTOTAL(109,Försäljning_april[Resultat försäljning])","v":{"v":0,"d":"0.00 kr"}},{"$f":"SUBTOTAL(109,Försäljning_april[Resultat frakt])","v":{"v":0,"d":"0.00 kr"}},{"$f":"SUBTOTAL(109,Försäljning_april[Summa resultat])","v":{"v":0,"d":"0.00 kr"}}]
["Resultattrend"]

{"sheet":"Maj","index":4,"n_rows":9,"n_cols":14,"rows_kept":9,"merged":[[3,0,4,0],[6,0,7,0]]}
["MAJ"]
["Onlineförsäljning",null,"Auktions-ID","Artikelbeskrivning","Inköpspris","Försäljningspris","Onlineavgifter","PayPal-avgifter","Kreditkortsavgifter","Fraktkostnader","Fraktkostnader2","Resultat försäljning","Resultat frakt","Summa resultat"]
["År",{"$nulls":11},{"$f":"Försäljning_maj[Fraktkostnader]-Försäljning_maj[Fraktkostnader2]","v":{"v":0,"d":"0.00 kr"}},{"$f":"Försäljning_maj[Resultat försäljning]+Försäljning_maj[Resultat frakt]","v":{"v":0,"d":"0.00 kr"}}]
[{"$f":"Försäljning_år","v":2012},{"$nulls":11},{"$f":"Försäljning_maj[Fraktkostnader]-Försäljning_maj[Fraktkostnader2]","v":{"v":0,"d":"0.00 kr"}},{"$f":"Försäljning_maj[Resultat försäljning]+Försäljning_maj[Resultat frakt]","v":{"v":0,"d":"0.00 kr"}}]
[{"$nulls":12},{"$f":"Försäljning_maj[Fraktkostnader]-Försäljning_maj[Fraktkostnader2]","v":{"v":0,"d":"0.00 kr"}},{"$f":"Försäljning_maj[Resultat försäljning]+Försäljning_maj[Resultat frakt]","v":{"v":0,"d":"0.00 kr"}}]
["Summa resultat",{"$nulls":11},{"$f":"Försäljning_maj[Fraktkostnader]-Försäljning_maj[Fraktkostnader2]","v":{"v":0,"d":"0.00 kr"}},{"$f":"Försäljning_maj[Resultat försäljning]+Försäljning_maj[Resultat frakt]","v":{"v":0,"d":"0.00 kr"}}]
[{"$f":"Försäljning_maj[[#Totals],[Summa resultat]]","v":{"v":0,"d":"0.00 kr"}},{"$nulls":11},{"$f":"Försäljning_maj[Fraktkostnader]-Försäljning_maj[Fraktkostnader2]","v":{"v":0,"d":"0.00 kr"}},{"$f":"Försäljning_maj[Resultat försäljning]+Försäljning_maj[Resultat frakt]","v":{"v":0,"d":"0.00 kr"}}]
[null,null,"Summa",{"$f":"\"Sålda artiklar: \"&SUBTOTAL(103,Försäljning_maj[Artikelbeskrivning])","v":"Sålda artiklar: 0"},{"$f":"SUBTOTAL(109,Försäljning_maj[Inköpspris])","v":{"v":0,"d":"0.00 kr"}},{"$f":"SUBTOTAL(109,Försäljning_maj[Försäljningspris])","v":{"v":0,"d":"0.00 kr"}},{"$f":"SUBTOTAL(109,Försäljning_maj[Onlineavgifter])","v":{"v":0,"d":"0.00 kr"}},{"$f":"SUBTOTAL(109,Försäljning_maj[PayPal-avgifter])","v":{"v":0,"d":"0.00 kr"}},{"$f":"SUBTOTAL(109,Försäljning_maj[Kreditkortsavgifter])","v":{"v":0,"d":"0.00 kr"}},{"$f":"SUBTOTAL(109,Försäljning_maj[Fraktkostnader])","v":{"v":0,"d":"0.00 kr"}},{"$f":"SUBTOTAL(109,Försäljning_maj[Fraktkostnader2])","v":{"v":0,"d":"0.00 kr"}},{"$f":"SUBTOTAL(109,Försäljning_maj[Resultat försäljning])","v":{"v":0,"d":"0.00 kr"}},{"$f":"SUBTOTAL(109,Försäljning_maj[Resultat frakt])","v":{"v":0,"d":"0.00 kr"}},{"$f":"SUBTOTAL(109,Försäljning_maj[Summa resultat])","v":{"v":0,"d":"0.00 kr"}}]
["Resultattrend"]

{"sheet":"Juni","index":5,"n_rows":9,"n_cols":14,"rows_kept":9,"merged":[[3,0,4,0],[6,0,7,0]]}
["JUNI"]
["Onlineförsäljning",null,"Auktions-ID","Artikelbeskrivning","Inköpspris","Försäljningspris","Onlineavgifter","PayPal-avgifter","Kreditkortsavgifter","Fraktkostnader","Fraktkostnader2","Resultat försäljning","Resultat frakt","Summa resultat"]
["År",{"$nulls":11},{"$f":"Försäljning_juni[Fraktkostnader]-Försäljning_juni[Fraktkostnader2]","v":{"v":0,"d":"0.00 kr"}},{"$f":"Försäljning_juni[Resultat försäljning]+Försäljning_juni[Resultat frakt]","v":{"v":0,"d":"0.00 kr"}}]
[{"$f":"Försäljning_år","v":2012},{"$nulls":11},{"$f":"Försäljning_juni[Fraktkostnader]-Försäljning_juni[Fraktkostnader2]","v":{"v":0,"d":"0.00 kr"}},{"$f":"Försäljning_juni[Resultat försäljning]+Försäljning_juni[Resultat frakt]","v":{"v":0,"d":"0.00 kr"}}]
[{"$nulls":12},{"$f":"Försäljning_juni[Fraktkostnader]-Försäljning_juni[Fraktkostnader2]","v":{"v":0,"d":"0.00 kr"}},{"$f":"Försäljning_juni[Resultat försäljning]+Försäljning_juni[Resultat frakt]","v":{"v":0,"d":"0.00 kr"}}]
["Summa resultat",{"$nulls":11},{"$f":"Försäljning_juni[Fraktkostnader]-Försäljning_juni[Fraktkostnader2]","v":{"v":0,"d":"0.00 kr"}},{"$f":"Försäljning_juni[Resultat försäljning]+Försäljning_juni[Resultat frakt]","v":{"v":0,"d":"0.00 kr"}}]
[{"$f":"Försäljning_juni[[#Totals],[Summa resultat]]","v":{"v":0,"d":"0.00 kr"}},{"$nulls":11},{"$f":"Försäljning_juni[Fraktkostnader]-Försäljning_juni[Fraktkostnader2]","v":{"v":0,"d":"0.00 kr"}},{"$f":"Försäljning_juni[Resultat försäljning]+Försäljning_juni[Resultat frakt]","v":{"v":0,"d":"0.00 kr"}}]
[null,null,"Summa",{"$f":"\"Sålda artiklar: \"&SUBTOTAL(103,Försäljning_juni[Artikelbeskrivning])","v":"Sålda artiklar: 0"},{"$f":"SUBTOTAL(109,Försäljning_juni[Inköpspris])","v":{"v":0,"d":"0.00 kr"}},{"$f":"SUBTOTAL(109,Försäljning_juni[Försäljningspris])","v":{"v":0,"d":"0.00 kr"}},{"$f":"SUBTOTAL(109,Försäljning_juni[Onlineavgifter])","v":{"v":0,"d":"0.00 kr"}},{"$f":"SUBTOTAL(109,Försäljning_juni[PayPal-avgifter])","v":{"v":0,"d":"0.00 kr"}},{"$f":"SUBTOTAL(109,Försäljning_juni[Kreditkortsavgifter])","v":{"v":0,"d":"0.00 kr"}},{"$f":"SUBTOTAL(109,Försäljning_juni[Fraktkostnader])","v":{"v":0,"d":"0.00 kr"}},{"$f":"SUBTOTAL(109,Försäljning_juni[Fraktkostnader2])","v":{"v":0,"d":"0.00 kr"}},{"$f":"SUBTOTAL(109,Försäljning_juni[Resultat försäljning])","v":{"v":0,"d":"0.00 kr"}},{"$f":"SUBTOTAL(109,Försäljning_juni[Resultat frakt])","v":{"v":0,"d":"0.00 kr"}},{"$f":"SUBTOTAL(109,Försäljning_juni[Summa resultat])","v":{"v":0,"d":"0.00 kr"}}]
["Resultattrend"]

{"sheet":"Juli","index":6,"n_rows":9,"n_cols":14,"rows_kept":9,"merged":[[3,0,4,0],[6,0,7,0]]}
["JULI"]
["Onlineförsäljning",null,"Auktions-ID","Artikelbeskrivning","Inköpspris","Försäljningspris","Onlineavgifter","PayPal-avgifter","Kreditkortsavgifter","Fraktkostnader","Fraktkostnader2","Resultat försäljning","Resultat frakt","Summa resultat"]
["År",{"$nulls":11},{"$f":"Försäljning_juli[Fraktkostnader]-Försäljning_juli[Fraktkostnader2]","v":{"v":0,"d":"0.00 kr"}},{"$f":"Försäljning_juli[Resultat försäljning]+Försäljning_juli[Resultat frakt]","v":{"v":0,"d":"0.00 kr"}}]
[{"$f":"Försäljning_år","v":2012},{"$nulls":11},{"$f":"Försäljning_juli[Fraktkostnader]-Försäljning_juli[Fraktkostnader2]","v":{"v":0,"d":"0.00 kr"}},{"$f":"Försäljning_juli[Resultat försäljning]+Försäljning_juli[Resultat frakt]","v":{"v":0,"d":"0.00 kr"}}]
[{"$nulls":12},{"$f":"Försäljning_juli[Fraktkostnader]-Försäljning_juli[Fraktkostnader2]","v":{"v":0,"d":"0.00 kr"}},{"$f":"Försäljning_juli[Resultat försäljning]+Försäljning_juli[Resultat frakt]","v":{"v":0,"d":"0.00 kr"}}]
["Summa resultat",{"$nulls":11},{"$f":"Försäljning_juli[Fraktkostnader]-Försäljning_juli[Fraktkostnader2]","v":{"v":0,"d":"0.00 kr"}},{"$f":"Försäljning_juli[Resultat försäljning]+Försäljning_juli[Resultat frakt]","v":{"v":0,"d":"0.00 kr"}}]
[{"$f":"Försäljning_juli[[#Totals],[Summa resultat]]","v":{"v":0,"d":"0.00 kr"}},{"$nulls":11},{"$f":"Försäljning_juli[Fraktkostnader]-Försäljning_juli[Fraktkostnader2]","v":{"v":0,"d":"0.00 kr"}},{"$f":"Försäljning_juli[Resultat försäljning]+Försäljning_juli[Resultat frakt]","v":{"v":0,"d":"0.00 kr"}}]
[null,null,"Summa",{"$f":"\"Sålda artiklar: \"&SUBTOTAL(103,Försäljning_juli[Artikelbeskrivning])","v":"Sålda artiklar: 0"},{"$f":"SUBTOTAL(109,Försäljning_juli[Inköpspris])","v":{"v":0,"d":"0.00 kr"}},{"$f":"SUBTOTAL(109,Försäljning_juli[Försäljningspris])","v":{"v":0,"d":"0.00 kr"}},{"$f":"SUBTOTAL(109,Försäljning_juli[Onlineavgifter])","v":{"v":0,"d":"0.00 kr"}},{"$f":"SUBTOTAL(109,Försäljning_juli[PayPal-avgifter])","v":{"v":0,"d":"0.00 kr"}},{"$f":"SUBTOTAL(109,Försäljning_juli[Kreditkortsavgifter])","v":{"v":0,"d":"0.00 kr"}},{"$f":"SUBTOTAL(109,Försäljning_juli[Fraktkostnader])","v":{"v":0,"d":"0.00 kr"}},{"$f":"SUBTOTAL(109,Försäljning_juli[Fraktkostnader2])","v":{"v":0,"d":"0.00 kr"}},{"$f":"SUBTOTAL(109,Försäljning_juli[Resultat försäljning])","v":{"v":0,"d":"0.00 kr"}},{"$f":"SUBTOTAL(109,Försäljning_juli[Resultat frakt])","v":{"v":0,"d":"0.00 kr"}},{"$f":"SUBTOTAL(109,Försäljning_juli[Summa resultat])","v":{"v":0,"d":"0.00 kr"}}]
["Resultattrend"]

{"sheet":"Augusti","index":7,"n_rows":9,"n_cols":14,"rows_kept":9,"merged":[[3,0,4,0],[6,0,7,0]]}
["AUGUSTI"]
["Onlineförsäljning",null,"Auktions-ID","Artikelbeskrivning","Inköpspris","Försäljningspris","Onlineavgifter","PayPal-avgifter","Kreditkortsavgifter","Fraktkostnader","Fraktkostnader2","Resultat försäljning","Resultat frakt","Summa resultat"]
["År",{"$nulls":11},{"$f":"Försäljning_augusti[Fraktkostnader]-Försäljning_augusti[Fraktkostnader2]","v":{"v":0,"d":"0.00 kr"}},{"$f":"Försäljning_augusti[Resultat försäljning]+Försäljning_augusti[Resultat frakt]","v":{"v":0,"d":"0.00 kr"}}]
[{"$f":"Försäljning_år","v":2012},{"$nulls":11},{"$f":"Försäljning_augusti[Fraktkostnader]-Försäljning_augusti[Fraktkostnader2]","v":{"v":0,"d":"0.00 kr"}},{"$f":"Försäljning_augusti[Resultat försäljning]+Försäljning_augusti[Resultat frakt]","v":{"v":0,"d":"0.00 kr"}}]
[{"$nulls":12},{"$f":"Försäljning_augusti[Fraktkostnader]-Försäljning_augusti[Fraktkostnader2]","v":{"v":0,"d":"0.00 kr"}},{"$f":"Försäljning_augusti[Resultat försäljning]+Försäljning_augusti[Resultat frakt]","v":{"v":0,"d":"0.00 kr"}}]
["Summa resultat",{"$nulls":11},{"$f":"Försäljning_augusti[Fraktkostnader]-Försäljning_augusti[Fraktkostnader2]","v":{"v":0,"d":"0.00 kr"}},{"$f":"Försäljning_augusti[Resultat försäljning]+Försäljning_augusti[Resultat frakt]","v":{"v":0,"d":"0.00 kr"}}]
[{"$f":"Försäljning_augusti[[#Totals],[Summa resultat]]","v":{"v":0,"d":"0.00 kr"}},{"$nulls":11},{"$f":"Försäljning_augusti[Fraktkostnader]-Försäljning_augusti[Fraktkostnader2]","v":{"v":0,"d":"0.00 kr"}},{"$f":"Försäljning_augusti[Resultat försäljning]+Försäljning_augusti[Resultat frakt]","v":{"v":0,"d":"0.00 kr"}}]
[null,null,"Summa",{"$f":"\"Sålda artiklar: \"&SUBTOTAL(103,Försäljning_augusti[Artikelbeskrivning])","v":"Sålda artiklar: 0"},{"$f":"SUBTOTAL(109,Försäljning_augusti[Inköpspris])","v":{"v":0,"d":"0.00 kr"}},{"$f":"SUBTOTAL(109,Försäljning_augusti[Försäljningspris])","v":{"v":0,"d":"0.00 kr"}},{"$f":"SUBTOTAL(109,Försäljning_augusti[Onlineavgifter])","v":{"v":0,"d":"0.00 kr"}},{"$f":"SUBTOTAL(109,Försäljning_augusti[PayPal-avgifter])","v":{"v":0,"d":"0.00 kr"}},{"$f":"SUBTOTAL(109,Försäljning_augusti[Kreditkortsavgifter])","v":{"v":0,"d":"0.00 kr"}},{"$f":"SUBTOTAL(109,Försäljning_augusti[Fraktkostnader])","v":{"v":0,"d":"0.00 kr"}},{"$f":"SUBTOTAL(109,Försäljning_augusti[Fraktkostnader2])","v":{"v":0,"d":"0.00 kr"}},{"$f":"SUBTOTAL(109,Försäljning_augusti[Resultat försäljning])","v":{"v":0,"d":"0.00 kr"}},{"$f":"SUBTOTAL(109,Försäljning_augusti[Resultat frakt])","v":{"v":0,"d":"0.00 kr"}},{"$f":"SUBTOTAL(109,Försäljning_augusti[Summa resultat])","v":{"v":0,"d":"0.00 kr"}}]
["Resultattrend"]

{"sheet":"September","index":8,"n_rows":9,"n_cols":14,"rows_kept":9,"merged":[[3,0,4,0],[6,0,7,0]]}
["SEPTEMBER"]
["Onlineförsäljning",null,"Auktions-ID","Artikelbeskrivning","Inköpspris","Försäljningspris","Onlineavgifter","PayPal-avgifter","Kreditkortsavgifter","Fraktkostnader","Fraktkostnader2","Resultat försäljning","Resultat frakt","Summa resultat"]
["År",{"$nulls":11},{"$f":"Försäljning_september[Fraktkostnader]-Försäljning_september[Fraktkostnader2]","v":{"v":0,"d":"0.00 kr"}},{"$f":"Försäljning_september[Resultat försäljning]+Försäljning_september[Resultat frakt]","v":{"v":0,"d":"0.00 kr"}}]
[{"$f":"Försäljning_år","v":2012},{"$nulls":11},{"$f":"Försäljning_september[Fraktkostnader]-Försäljning_september[Fraktkostnader2]","v":{"v":0,"d":"0.00 kr"}},{"$f":"Försäljning_september[Resultat försäljning]+Försäljning_september[Resultat frakt]","v":{"v":0,"d":"0.00 kr"}}]
[{"$nulls":12},{"$f":"Försäljning_september[Fraktkostnader]-Försäljning_september[Fraktkostnader2]","v":{"v":0,"d":"0.00 kr"}},{"$f":"Försäljning_september[Resultat försäljning]+Försäljning_september[Resultat frakt]","v":{"v":0,"d":"0.00 kr"}}]
["Summa resultat",{"$nulls":11},{"$f":"Försäljning_september[Fraktkostnader]-Försäljning_september[Fraktkostnader2]","v":{"v":0,"d":"0.00 kr"}},{"$f":"Försäljning_september[Resultat försäljning]+Försäljning_september[Resultat frakt]","v":{"v":0,"d":"0.00 kr"}}]
[{"$f":"Försäljning_september[[#Totals],[Summa resultat]]","v":{"v":0,"d":"0.00 kr"}},{"$nulls":11},{"$f":"Försäljning_september[Fraktkostnader]-Försäljning_september[Fraktkostnader2]","v":{"v":0,"d":"0.00 kr"}},{"$f":"Försäljning_september[Resultat försäljning]+Försäljning_september[Resultat frakt]","v":{"v":0,"d":"0.00 kr"}}]
[null,null,"Summa",{"$f":"\"Sålda artiklar: \"&SUBTOTAL(103,Försäljning_september[Artikelbeskrivning])","v":"Sålda artiklar: 0"},{"$f":"SUBTOTAL(109,Försäljning_september[Inköpspris])","v":{"v":0,"d":"0.00 kr"}},{"$f":"SUBTOTAL(109,Försäljning_september[Försäljningspris])","v":{"v":0,"d":"0.00 kr"}},{"$f":"SUBTOTAL(109,Försäljning_september[Onlineavgifter])","v":{"v":0,"d":"0.00 kr"}},{"$f":"SUBTOTAL(109,Försäljning_september[PayPal-avgifter])","v":{"v":0,"d":"0.00 kr"}},{"$f":"SUBTOTAL(109,Försäljning_september[Kreditkortsavgifter])","v":{"v":0,"d":"0.00 kr"}},{"$f":"SUBTOTAL(109,Försäljning_september[Fraktkostnader])","v":{"v":0,"d":"0.00 kr"}},{"$f":"SUBTOTAL(109,Försäljning_september[Fraktkostnader2])","v":{"v":0,"d":"0.00 kr"}},{"$f":"SUBTOTAL(109,Försäljning_september[Resultat försäljning])","v":{"v":0,"d":"0.00 kr"}},{"$f":"SUBTOTAL(109,Försäljning_september[Resultat frakt])","v":{"v":0,"d":"0.00 kr"}},{"$f":"SUBTOTAL(109,Försäljning_september[Summa resultat])","v":{"v":0,"d":"0.00 kr"}}]
["Resultattrend"]

{"sheet":"Oktober","index":9,"n_rows":9,"n_cols":14,"rows_kept":9,"merged":[[3,0,4,0],[6,0,7,0]]}
["OKTOBER"]
["Onlineförsäljning",null,"Auktions-ID","Artikelbeskrivning","Inköpspris","Försäljningspris","Onlineavgifter","PayPal-avgifter","Kreditkortsavgifter","Fraktkostnader","Fraktkostnader2","Resultat försäljning","Resultat frakt","Summa resultat"]
["År",{"$nulls":11},{"$f":"Försäljning_oktober[Fraktkostnader]-Försäljning_oktober[Fraktkostnader2]","v":{"v":0,"d":"0.00 kr"}},{"$f":"Försäljning_oktober[Resultat försäljning]+Försäljning_oktober[Resultat frakt]","v":{"v":0,"d":"0.00 kr"}}]
[{"$f":"Försäljning_år","v":2012},{"$nulls":11},{"$f":"Försäljning_oktober[Fraktkostnader]-Försäljning_oktober[Fraktkostnader2]","v":{"v":0,"d":"0.00 kr"}},{"$f":"Försäljning_oktober[Resultat försäljning]+Försäljning_oktober[Resultat frakt]","v":{"v":0,"d":"0.00 kr"}}]
[{"$nulls":12},{"$f":"Försäljning_oktober[Fraktkostnader]-Försäljning_oktober[Fraktkostnader2]","v":{"v":0,"d":"0.00 kr"}},{"$f":"Försäljning_oktober[Resultat försäljning]+Försäljning_oktober[Resultat frakt]","v":{"v":0,"d":"0.00 kr"}}]
["Summa resultat",{"$nulls":11},{"$f":"Försäljning_oktober[Fraktkostnader]-Försäljning_oktober[Fraktkostnader2]","v":{"v":0,"d":"0.00 kr"}},{"$f":"Försäljning_oktober[Resultat försäljning]+Försäljning_oktober[Resultat frakt]","v":{"v":0,"d":"0.00 kr"}}]
[{"$f":"Försäljning_oktober[[#Totals],[Summa resultat]]","v":{"v":0,"d":"0.00 kr"}},{"$nulls":11},{"$f":"Försäljning_oktober[Fraktkostnader]-Försäljning_oktober[Fraktkostnader2]","v":{"v":0,"d":"0.00 kr"}},{"$f":"Försäljning_oktober[Resultat försäljning]+Försäljning_oktober[Resultat frakt]","v":{"v":0,"d":"0.00 kr"}}]
[null,null,"Summa",{"$f":"\"Sålda artiklar: \"&SUBTOTAL(103,Försäljning_oktober[Artikelbeskrivning])","v":"Sålda artiklar: 0"},{"$f":"SUBTOTAL(109,Försäljning_oktober[Inköpspris])","v":{"v":0,"d":"0.00 kr"}},{"$f":"SUBTOTAL(109,Försäljning_oktober[Försäljningspris])","v":{"v":0,"d":"0.00 kr"}},{"$f":"SUBTOTAL(109,Försäljning_oktober[Onlineavgifter])","v":{"v":0,"d":"0.00 kr"}},{"$f":"SUBTOTAL(109,Försäljning_oktober[PayPal-avgifter])","v":{"v":0,"d":"0.00 kr"}},{"$f":"SUBTOTAL(109,Försäljning_oktober[Kreditkortsavgifter])","v":{"v":0,"d":"0.00 kr"}},{"$f":"SUBTOTAL(109,Försäljning_oktober[Fraktkostnader])","v":{"v":0,"d":"0.00 kr"}},{"$f":"SUBTOTAL(109,Försäljning_oktober[Fraktkostnader2])","v":{"v":0,"d":"0.00 kr"}},{"$f":"SUBTOTAL(109,Försäljning_oktober[Resultat försäljning])","v":{"v":0,"d":"0.00 kr"}},{"$f":"SUBTOTAL(109,Försäljning_oktober[Resultat frakt])","v":{"v":0,"d":"0.00 kr"}},{"$f":"SUBTOTAL(109,Försäljning_oktober[Summa resultat])","v":{"v":0,"d":"0.00 kr"}}]
["Resultattrend"]

{"sheet":"November","index":10,"n_rows":9,"n_cols":14,"rows_kept":9,"merged":[[3,0,4,0],[6,0,7,0]]}
["NOVEMBER"]
["Onlineförsäljning",null,"Auktions-ID","Artikelbeskrivning","Inköpspris","Försäljningspris","Onlineavgifter","PayPal-avgifter","Kreditkortsavgifter","Fraktkostnader","Fraktkostnader2","Resultat försäljning","Resultat frakt","Summa resultat"]
["År",{"$nulls":11},{"$f":"Försäljning_november[Fraktkostnader]-Försäljning_november[Fraktkostnader2]","v":{"v":0,"d":"0.00 kr"}},{"$f":"Försäljning_november[Resultat försäljning]+Försäljning_november[Resultat frakt]","v":{"v":0,"d":"0.00 kr"}}]
[{"$f":"Försäljning_år","v":2012},{"$nulls":11},{"$f":"Försäljning_november[Fraktkostnader]-Försäljning_november[Fraktkostnader2]","v":{"v":0,"d":"0.00 kr"}},{"$f":"Försäljning_november[Resultat försäljning]+Försäljning_november[Resultat frakt]","v":{"v":0,"d":"0.00 kr"}}]
[{"$nulls":12},{"$f":"Försäljning_november[Fraktkostnader]-Försäljning_november[Fraktkostnader2]","v":{"v":0,"d":"0.00 kr"}},{"$f":"Försäljning_november[Resultat försäljning]+Försäljning_november[Resultat frakt]","v":{"v":0,"d":"0.00 kr"}}]
["Summa resultat",{"$nulls":11},{"$f":"Försäljning_november[Fraktkostnader]-Försäljning_november[Fraktkostnader2]","v":{"v":0,"d":"0.00 kr"}},{"$f":"Försäljning_november[Resultat försäljning]+Försäljning_november[Resultat frakt]","v":{"v":0,"d":"0.00 kr"}}]
[{"$f":"Försäljning_november[[#Totals],[Summa resultat]]","v":{"v":0,"d":"0.00 kr"}},{"$nulls":11},{"$f":"Försäljning_november[Fraktkostnader]-Försäljning_november[Fraktkostnader2]","v":{"v":0,"d":"0.00 kr"}},{"$f":"Försäljning_november[Resultat försäljning]+Försäljning_november[Resultat frakt]","v":{"v":0,"d":"0.00 kr"}}]
[null,null,"Summa",{"$f":"\"Sålda artiklar: \"&SUBTOTAL(103,Försäljning_november[Artikelbeskrivning])","v":"Sålda artiklar: 0"},{"$f":"SUBTOTAL(109,Försäljning_november[Inköpspris])","v":{"v":0,"d":"0.00 kr"}},{"$f":"SUBTOTAL(109,Försäljning_november[Försäljningspris])","v":{"v":0,"d":"0.00 kr"}},{"$f":"SUBTOTAL(109,Försäljning_november[Onlineavgifter])","v":{"v":0,"d":"0.00 kr"}},{"$f":"SUBTOTAL(109,Försäljning_november[PayPal-avgifter])","v":{"v":0,"d":"0.00 kr"}},{"$f":"SUBTOTAL(109,Försäljning_november[Kreditkortsavgifter])","v":{"v":0,"d":"0.00 kr"}},{"$f":"SUBTOTAL(109,Försäljning_november[Fraktkostnader])","v":{"v":0,"d":"0.00 kr"}},{"$f":"SUBTOTAL(109,Försäljning_november[Fraktkostnader2])","v":{"v":0,"d":"0.00 kr"}},{"$f":"SUBTOTAL(109,Försäljning_november[Resultat försäljning])","v":{"v":0,"d":"0.00 kr"}},{"$f":"SUBTOTAL(109,Försäljning_november[Resultat frakt])","v":{"v":0,"d":"0.00 kr"}},{"$f":"SUBTOTAL(109,Försäljning_november[Summa resultat])","v":{"v":0,"d":"0.00 kr"}}]
["Resultattrend"]

{"sheet":"December","index":11,"n_rows":9,"n_cols":14,"rows_kept":9,"merged":[[3,0,4,0],[6,0,7,0]]}
["DECEMBER"]
["Onlineförsäljning",null,"Auktions-ID","Artikelbeskrivning","Inköpspris","Försäljningspris","Onlineavgifter","PayPal-avgifter","Kreditkortsavgifter","Fraktkostnader","Fraktkostnader2","Resultat försäljning","Resultat frakt","Summa resultat"]
["År",{"$nulls":11},{"$f":"Försäljning_december[Fraktkostnader]-Försäljning_december[Fraktkostnader2]","v":{"v":0,"d":"0.00 kr"}},{"$f":"Försäljning_december[Resultat försäljning]+Försäljning_december[Resultat frakt]","v":{"v":0,"d":"0.00 kr"}}]
[{"$f":"Försäljning_år","v":2012},{"$nulls":11},{"$f":"Försäljning_december[Fraktkostnader]-Försäljning_december[Fraktkostnader2]","v":{"v":0,"d":"0.00 kr"}},{"$f":"Försäljning_december[Resultat försäljning]+Försäljning_december[Resultat frakt]","v":{"v":0,"d":"0.00 kr"}}]
[{"$nulls":12},{"$f":"Försäljning_december[Fraktkostnader]-Försäljning_december[Fraktkostnader2]","v":{"v":0,"d":"0.00 kr"}},{"$f":"Försäljning_december[Resultat försäljning]+Försäljning_december[Resultat frakt]","v":{"v":0,"d":"0.00 kr"}}]
["Summa resultat",{"$nulls":11},{"$f":"Försäljning_december[Fraktkostnader]-Försäljning_december[Fraktkostnader2]","v":{"v":0,"d":"0.00 kr"}},{"$f":"Försäljning_december[Resultat försäljning]+Försäljning_december[Resultat frakt]","v":{"v":0,"d":"0.00 kr"}}]
[{"$f":"Försäljning_december[[#Totals],[Summa resultat]]","v":{"v":0,"d":"0.00 kr"}},{"$nulls":11},{"$f":"Försäljning_december[Fraktkostnader]-Försäljning_december[Fraktkostnader2]","v":{"v":0,"d":"0.00 kr"}},{"$f":"Försäljning_december[Resultat försäljning]+Försäljning_december[Resultat frakt]","v":{"v":0,"d":"0.00 kr"}}]
[null,null,"Summa",{"$f":"\"Sålda artiklar: \"&SUBTOTAL(103,Försäljning_december[Artikelbeskrivning])","v":"Sålda artiklar: 0"},{"$f":"SUBTOTAL(109,Försäljning_december[Inköpspris])","v":{"v":0,"d":"0.00 kr"}},{"$f":"SUBTOTAL(109,Försäljning_december[Försäljningspris])","v":{"v":0,"d":"0.00 kr"}},{"$f":"SUBTOTAL(109,Försäljning_december[Onlineavgifter])","v":{"v":0,"d":"0.00 kr"}},{"$f":"SUBTOTAL(109,Försäljning_december[PayPal-avgifter])","v":{"v":0,"d":"0.00 kr"}},{"$f":"SUBTOTAL(109,Försäljning_december[Kreditkortsavgifter])","v":{"v":0,"d":"0.00 kr"}},{"$f":"SUBTOTAL(109,Försäljning_december[Fraktkostnader])","v":{"v":0,"d":"0.00 kr"}},{"$f":"SUBTOTAL(109,Försäljning_december[Fraktkostnader2])","v":{"v":0,"d":"0.00 kr"}},{"$f":"SUBTOTAL(109,Försäljning_december[Resultat försäljning])","v":{"v":0,"d":"0.00 kr"}},{"$f":"SUBTOTAL(109,Försäljning_december[Resultat frakt])","v":{"v":0,"d":"0.00 kr"}},{"$f":"SUBTOTAL(109,Försäljning_december[Summa resultat])","v":{"v":0,"d":"0.00 kr"}}]
["Resultattrend"]

{"sheet":"Sammanfattning hittills i år","index":12,"n_rows":16,"n_cols":11,"rows_kept":16,"merged":[[3,0,4,0],[6,0,7,0]]}
["HITTILLS I ÅR"]
["Sammanfattning",null,"Resultat",{"$nulls":4},"Resultat hittills i år"]
["År",{"$nulls":6},"Månad","T","Resultat frakt","Summa resultat"]
[{"$f":"Försäljning_år","v":2012},{"$nulls":6},"Januari",{"$f":"Försäljning_januari[[#Totals],[Resultat försäljning]]","v":{"v":79.5,"d":"79.50 kr"}},{"$f":"Försäljning_januari[[#Totals],[Resultat frakt]]","v":{"v":9.5,"d":"9.50 kr"}},{"$f":"IF(AND(Sammanfattning_hittills_år[[#This Row],[T]]<>\"\",Sammanfattning_hittills_år[[#This Row],[Resultat frakt]]<>\"\"),Sammanfattning_hittills_år[[#This Row],[T]]+Sammanfattning_hittills_år[[#This Row],[Resultat frakt]],\"\")","v":{"v":89,"d":"89.00 kr"}}]
[{"$nulls":7},"Februari",{"$f":"Försäljning_februari[[#Totals],[Resultat försäljning]]","v":{"v":212.3,"d":"212.30 kr"}},{"$f":"Försäljning_februari[[#Totals],[Resultat frakt]]","v":{"v":12.3,"d":"12.30 kr"}},{"$f":"IF(AND(Sammanfattning_hittills_år[[#This Row],[T]]<>\"\",Sammanfattning_hittills_år[[#This Row],[Resultat frakt]]<>\"\"),Sammanfattning_hittills_år[[#This Row],[T]]+Sammanfattning_hittills_år[[#This Row],[Resultat frakt]],\"\")","v":{"v":224.60000000000002,"d":"224.60 kr"}}]
["Månatlig försäljningstrend:",{"$nulls":6},"Mars",{"$f":"Försäljning_mars[[#Totals],[Resultat försäljning]]","v":{"v":0,"d":"0.00 kr"}},{"$f":"Försäljning_mars[[#Totals],[Resultat frakt]]","v":{"v":0,"d":"0.00 kr"}},{"$f":"IF(AND(Sammanfattning_hittills_år[[#This Row],[T]]<>\"\",Sammanfattning_hittills_år[[#This Row],[Resultat frakt]]<>\"\"),Sammanfattning_hittills_år[[#This Row],[T]]+Sammanfattning_hittills_år[[#This Row],[Resultat frakt]],\"\")","v":{"v":0,"d":"0.00 kr"}}]
[{"$nulls":7},"April",{"$f":"Försäljning_april[[#Totals],[Resultat försäljning]]","v":{"v":0,"d":"0.00 kr"}},{"$f":"Försäljning_april[[#Totals],[Resultat frakt]]","v":{"v":0,"d":"0.00 kr"}},{"$f":"IF(AND(Sammanfattning_hittills_år[[#This Row],[T]]<>\"\",Sammanfattning_hittills_år[[#This Row],[Resultat frakt]]<>\"\"),Sammanfattning_hittills_år[[#This Row],[T]]+Sammanfattning_hittills_år[[#This Row],[Resultat frakt]],\"\")","v":{"v":0,"d":"0.00 kr"}}]
[{"$nulls":7},"Maj",{"$f":"Försäljning_maj[[#Totals],[Resultat försäljning]]","v":{"v":0,"d":"0.00 kr"}},{"$f":"Försäljning_maj[[#Totals],[Resultat frakt]]","v":{"v":0,"d":"0.00 kr"}},{"$f":"IF(AND(Sammanfattning_hittills_år[[#This Row],[T]]<>\"\",Sammanfattning_hittills_år[[#This Row],[Resultat frakt]]<>\"\"),Sammanfattning_hittills_år[[#This Row],[T]]+Sammanfattning_hittills_år[[#This Row],[Resultat frakt]],\"\")","v":{"v":0,"d":"0.00 kr"}}]
[{"$nulls":7},"Juni",{"$f":"Försäljning_juni[[#Totals],[Resultat försäljning]]","v":{"v":0,"d":"0.00 kr"}},{"$f":"Försäljning_juni[[#Totals],[Resultat frakt]]","v":{"v":0,"d":"0.00 kr"}},{"$f":"IF(AND(Sammanfattning_hittills_år[[#This Row],[T]]<>\"\",Sammanfattning_hittills_år[[#This Row],[Resultat frakt]]<>\"\"),Sammanfattning_hittills_år[[#This Row],[T]]+Sammanfattning_hittills_år[[#This Row],[Resultat frakt]],\"\")","v":{"v":0,"d":"0.00 kr"}}]
[{"$nulls":7},"Juli",{"$f":"Försäljning_juli[[#Totals],[Resultat försäljning]]","v":{"v":0,"d":"0.00 kr"}},{"$f":"Försäljning_juli[[#Totals],[Resultat frakt]]","v":{"v":0,"d":"0.00 kr"}},{"$f":"IF(AND(Sammanfattning_hittills_år[[#This Row],[T]]<>\"\",Sammanfattning_hittills_år[[#This Row],[Resultat frakt]]<>\"\"),Sammanfattning_hittills_år[[#This Row],[T]]+Sammanfattning_hittills_år[[#This Row],[Resultat frakt]],\"\")","v":{"v":0,"d":"0.00 kr"}}]
[{"$nulls":7},"Augusti",{"$f":"Försäljning_augusti[[#Totals],[Resultat försäljning]]","v":{"v":0,"d":"0.00 kr"}},{"$f":"Försäljning_augusti[[#Totals],[Resultat frakt]]","v":{"v":0,"d":"0.00 kr"}},{"$f":"IF(AND(Sammanfattning_hittills_år[[#This Row],[T]]<>\"\",Sammanfattning_hittills_år[[#This Row],[Resultat frakt]]<>\"\"),Sammanfattning_hittills_år[[#This Row],[T]]+Sammanfattning_hittills_år[[#This Row],[Resultat frakt]],\"\")","v":{"v":0,"d":"0.00 kr"}}]
[{"$nulls":7},"September",{"$f":"Försäljning_september[[#Totals],[Resultat försäljning]]","v":{"v":0,"d":"0.00 kr"}},{"$f":"Försäljning_september[[#Totals],[Resultat frakt]]","v":{"v":0,"d":"0.00 kr"}},{"$f":"IF(AND(Sammanfattning_hittills_år[[#This Row],[T]]<>\"\",Sammanfattning_hittills_år[[#This Row],[Resultat frakt]]<>\"\"),Sammanfattning_hittills_år[[#This Row],[T]]+Sammanfattning_hittills_år[[#This Row],[Resultat frakt]],\"\")","v":{"v":0,"d":"0.00 kr"}}]
[{"$nulls":7},"Oktober",{"$f":"Försäljning_oktober[[#Totals],[Resultat försäljning]]","v":{"v":0,"d":"0.00 kr"}},{"$f":"Försäljning_oktober[[#Totals],[Resultat frakt]]","v":{"v":0,"d":"0.00 kr"}},{"$f":"IF(AND(Sammanfattning_hittills_år[[#This Row],[T]]<>\"\",Sammanfattning_hittills_år[[#This Row],[Resultat frakt]]<>\"\"),Sammanfattning_hittills_år[[#This Row],[T]]+Sammanfattning_hittills_år[[#This Row],[Resultat frakt]],\"\")","v":{"v":0,"d":"0.00 kr"}}]
[{"$nulls":7},"November",{"$f":"Försäljning_november[[#Totals],[Resultat försäljning]]","v":{"v":0,"d":"0.00 kr"}},{"$f":"Försäljning_november[[#Totals],[Resultat frakt]]","v":{"v":0,"d":"0.00 kr"}},{"$f":"IF(AND(Sammanfattning_hittills_år[[#This Row],[T]]<>\"\",Sammanfattning_hittills_år[[#This Row],[Resultat frakt]]<>\"\"),Sammanfattning_hittills_år[[#This Row],[T]]+Sammanfattning_hittills_år[[#This Row],[Resultat frakt]],\"\")","v":{"v":0,"d":"0.00 kr"}}]
[{"$nulls":7},"December",{"$f":"Försäljning_december[[#Totals],[Resultat försäljning]]","v":{"v":0,"d":"0.00 kr"}},{"$f":"Försäljning_december[[#Totals],[Resultat frakt]]","v":{"v":0,"d":"0.00 kr"}},{"$f":"IF(AND(Sammanfattning_hittills_år[[#This Row],[T]]<>\"\",Sammanfattning_hittills_år[[#This Row],[Resultat frakt]]<>\"\"),Sammanfattning_hittills_år[[#This Row],[T]]+Sammanfattning_hittills_år[[#This Row],[Resultat frakt]],\"\")","v":{"v":0,"d":"0.00 kr"}}]
[{"$nulls":7},"Summa",{"$f":"SUBTOTAL(109,Sammanfattning_hittills_år[T])","v":{"v":291.8,"d":"291.80 kr"}},{"$f":"SUBTOTAL(109,Sammanfattning_hittills_år[Resultat frakt])","v":{"v":21.8,"d":"21.80 kr"}},{"$f":"SUBTOTAL(109,Sammanfattning_hittills_år[Summa resultat])","v":{"v":313.6,"d":"313.60 kr"}}]